fUSD/lending_fUSD_20260702
["ID","MTS","AMOUNT","RATE_DAILY","PERIOD"]
[426898781,1782995439000,-251.0,0.0003036,2]
[426898784,1782995439000,-3689.788,0.00030447,26]
[426898774,1782995439000,-446.74234311,0.00030137,2]
[426898793,1782995439000,-500.0,0.00030975,14]
[426898792,1782995439000,-500.0,0.00030975,120]
[426898802,1782995439000,-251.66284863,0.00031128,2]
[426898796,1782995439000,-1065.68518225,0.00030991,2]
[426898790,1782995439000,-546.58713097,0.00030914,3]
[426898791,1782995439000,-577.72670713,0.00030975,2]
[426898785,1782995439000,-167.984,0.00030447,26]
[426898795,1782995439000,-500.0,0.00030975,60]
[426898786,1782995439000,-800.0,0.000305,2]
[426898787,1782995439000,-251.0,0.0003069,2]
[426898783,1782995439000,-1065.68518225,0.00030443,2]
[426898788,1782995439000,-1065.68518225,0.00030717,2]
[426898794,1782995439000,-500.0,0.00030975,120]
[426898789,1782995439000,-1502.28,0.00030901,30]
[426898870,1782995440000,-885.1986,0.00032262,28]
[426898868,1782995440000,-800.0,0.00032259,12]
[426898862,1782995440000,-800.0,0.00032259,12]
[426898861,1782995440000,-800.0,0.00032259,12]
[426898859,1782995440000,-307.96673631,0.00032255,2]
[426898867,1782995440000,-800.0,0.00032259,12]
[426898866,1782995440000,-800.0,0.00032259,12]
[426898864,1782995440000,-800.0,0.00032259,12]
[426898865,1782995440000,-800.0,0.00032259,12]
[426898860,1782995440000,-279.0,0.00032256,2]
[426898875,1782995440000,-317.0,0.000324,2]
[426898872,1782995440000,-700.0,0.0003227,2]
[426898869,1782995440000,-654.23417062,0.00032262,28]
[426898874,1782995440000,-37716.12364436,0.000324,2]
[426898871,1782995440000,-500.0,0.00032263,2]
[426898876,1782995440000,-2110.0,0.000325,2]
[426898877,1782995440000,-800.0,0.00032556,12]
[426898878,1782995440000,-150.0,0.00032562,2]
[426898879,1782995440000,-152.0,0.00032572,5]
[426898881,1782995440000,-2120.24,0.00032592,2]
[426898890,1782995440000,-1000.0,0.00032634,2]
[426898888,1782995440000,-464.78995069,0.00032593,12]
[426898856,1782995440000,-1780.0,0.0003224,2]
[426898880,1782995440000,-327.44,0.00032584,3]
[426898873,1782995440000,-1065.68518225,0.00032361,2]
[426898857,1782995440000,-414.0,0.00032244,2]
[426898840,1782995440000,-391.0,0.00032076,2]
[426898854,1782995440000,-412.0,0.00032229,2]
[426898887,1782995440000,-800.0,0.00032593,12]
[426898830,1782995440000,-469.0,0.00031988,2]
[426898831,1782995440000,-391.0,0.00031994,2]
[426898833,1782995440000,-412.0,0.00032005,2]
[426898841,1782995440000,-391.0,0.00032082,2]
[426898842,1782995440000,-1065.68518225,0.00032087,2]
[426898832,1782995440000,-399.0,0.00032,2]
[426898843,1782995440000,-279.0,0.00032136,2]
[426898837,1782995440000,-404.0,0.00032062,2]
[426898836,1782995440000,-412.0,0.0003204,2]
[426898835,1782995440000,-545.0,0.00032027,2]
[426898838,1782995440000,-251.66284863,0.00032071,2]
[426898834,1782995440000,-4573.70996346,0.00032008,2]
[426898839,1782995440000,-379.0,0.00032076,2]
[426898850,1782995440000,-391.0,0.00032196,2]
[426898846,1782995440000,-389.0,0.0003217,2]
[426898847,1782995440000,-417.0,0.00032171,2]
[426898844,1782995440000,-412.0,0.00032152,2]
[426898849,1782995440000,-224.0,0.0003218,2]
[426898848,1782995440000,-164.65,0.00032172,2]
[426898851,1782995440000,-1267.81,0.000322,30]
[426898845,1782995440000,-391.0,0.00032167,2]
[426898852,1782995440000,-391.0,0.00032212,2]
[426898853,1782995440000,-391.0,0.00032217,2]
[426898855,1782995440000,-6232.47,0.00032232,7]
[426898863,1782995440000,-800.0,0.00032259,12]
[426898889,1782995440000,-3371.80918106,0.00032632,2]
[426898858,1782995440000,-412.0,0.00032252,2]
[426898886,1782995440000,-800.0,0.00032593,12]
[426898926,1782995440000,-2000.0,0.000329,2]
[426898924,1782995440000,-1000.0,0.00032889,37]
[426898927,1782995440000,-33361.7046,0.000329,2]
[426898929,1782995440000,-336.59667614,0.000329,2]
[426898933,1782995440000,-1000.0,0.00032916,37]
[426898931,1782995440000,-512.72249664,0.000329,2]
[426898935,1782995440000,-350.0,0.00032918,2]
[426898937,1782995440000,-350.0,0.00032943,4]
[426898940,1782995440000,-300.0,0.0003297,2]
[426898939,1782995440000,-1000.0,0.00032944,37]
[426898942,1782995440000,-300.0,0.0003297,2]
[426898943,1782995440000,-700.0,0.0003297,2]
[426898945,1782995440000,-700.0,0.0003297,2]
[426898941,1782995440000,-300.0,0.0003297,2]
[426898946,1782995440000,-700.0,0.0003297,2]
[426898948,1782995440000,-1918.37160729,0.00032971,37]
[426898947,1782995440000,-283.40982,0.0003297,37]
[426898955,1782995440000,-123795.1658457,0.00032982,2]
[426898954,1782995440000,-500.0,0.00032981,60]
[426898949,1782995440000,-500.0,0.00032981,120]
[426898952,1782995440000,-500.0,0.00032981,120]
[426898950,1782995440000,-501.95764274,0.00032981,14]
[426898953,1782995440000,-500.0,0.00032981,7]
[426898951,1782995440000,-1000.0,0.00032981,2]
[426898891,1782995440000,-500.0,0.00032634,7]
[426898910,1782995440000,-700.0,0.0003287,2]
[426898909,1782995440000,-300.0,0.0003287,2]
[426898944,1782995440000,-700.0,0.0003297,2]
[426898908,1782995440000,-511.56157657,0.00032865,2]
[426898922,1782995440000,-254.91763676,0.00032883,30]
[426898882,1782995440000,-800.0,0.00032593,12]
[426898883,1782995440000,-800.0,0.00032593,12]
[426898885,1782995440000,-800.0,0.00032593,12]
[426898884,1782995440000,-800.0,0.00032593,12]
[426898892,1782995440000,-392.36326978,0.00032634,7]
[426898895,1782995440000,-1000.0,0.0003267,36]
[426898896,1782995440000,-283.40981,0.0003267,34]
[426898893,1782995440000,-1065.68518225,0.00032635,2]
[426898900,1782995440000,-1000.0,0.00032752,36]
[426898899,1782995440000,-1065.68518225,0.00032744,2]
[426898897,1782995440000,-1000.0,0.00032697,36]
[426898903,1782995440000,-350.0,0.00032805,26]
[426898894,1782995440000,-1396.0,0.00032658,7]
[426898907,1782995440000,-1000.0,0.00032862,37]
[426898904,1782995440000,-1000.0,0.00032807,37]
[426898902,1782995440000,-1000.0,0.00032779,37]
[426898920,1782995440000,-158.275329,0.00032877,2]
[426898918,1782995440000,-573.3506609,0.00032877,10]
[426898914,1782995440000,-283.40982,0.0003287,36]
[426898906,1782995440000,-1000.0,0.00032834,37]
[426898912,1782995440000,-700.0,0.0003287,2]
[426898905,1782995440000,-768.91585289,0.00032811,7]
[426898901,1782995440000,-283.40982,0.0003277,35]
[426898898,1782995440000,-1000.0,0.00032725,36]
[426898916,1782995440000,-2000.0,0.00032877,50]
[426898981,1782995441000,-500.0,0.00032999,7]
[426898971,1782995441000,-1000.0,0.00032999,2]
[426898973,1782995441000,-1000.0,0.00032999,2]
[426898980,1782995441000,-500.0,0.00032999,7]
[426898982,1782995441000,-500.0,0.00032999,7]
[426898977,1782995441000,-1000.0,0.00032999,2]
[426898976,1782995441000,-1000.0,0.00032999,2]
[426898984,1782995441000,-500.0,0.00032999,7]
[426898983,1782995441000,-500.0,0.00032999,7]
[426898968,1782995441000,-1000.0,0.00032999,2]
[426898974,1782995441000,-1000.0,0.00032999,2]
[426898966,1782995441000,-1000.0,0.00032999,2]
[426898958,1782995441000,-312793.9807282,0.00032982,2]
[426898965,1782995441000,-160.26529082,0.00032999,2]
[426898963,1782995441000,-642.78,0.00032998,30]
[426898969,1782995441000,-1000.0,0.00032999,2]
[426898964,1782995441000,-681.75,0.00032998,30]
[426898967,1782995441000,-1000.0,0.00032999,2]
[426898972,1782995441000,-1000.0,0.00032999,2]
[426898962,1782995441000,-151.0,0.00032997,14]
[426898961,1782995441000,-217.77497465,0.0003299,2]
[426898960,1782995441000,-217.77497465,0.0003299,2]
[426898959,1782995441000,-97396.8454089,0.00032983,2]
[426898957,1782995441000,-52745.239598,0.00032982,2]
[426898956,1782995441000,-3903.4028756,0.00032982,2]
[426898978,1782995441000,-1000.0,0.00032999,2]
[426898970,1782995441000,-1000.0,0.00032999,2]
[426898985,1782995441000,-500.0,0.00032999,7]
[426898996,1782995441000,-206.49009723,0.00032999,2]
[426898979,1782995441000,-206.87185406,0.00032999,2]
[426898975,1782995441000,-1000.0,0.00032999,2]
[426899012,1782995441000,-2833.1221127,0.00033,7]
[426899011,1782995441000,-276.13657232,0.00033,7]
[426899010,1782995441000,-920.85892518,0.00033,7]
[426899006,1782995441000,-516.80275567,0.00028916,2]
[426899008,1782995441000,-186.35405345,0.00029505,2]
[426899009,1782995441000,-20.31557472,0.00033,7]
[426899007,1782995441000,-3941.57739591,0.00028916,2]
[426899005,1782995441000,-337.68319016,0.00028916,2]
[426899004,1782995441000,-1555.10002022,0.00028916,2]
[426899003,1782995441000,-9077.54866152,0.00033,7]
[426899001,1782995441000,-8947.21879473,0.00033,7]
[426899002,1782995441000,-8943.78386462,0.00033,7]
[426899013,1782995441000,-18626.61799317,0.00033,7]
[426898999,1782995441000,-186.35405345,0.00029083,2]
[426899000,1782995441000,-8685.24527403,0.00033,7]
[426898995,1782995441000,-504.9477183,0.00032999,60]
[426898986,1782995441000,-500.0,0.00032999,7]
[426898997,1782995441000,-1480052.00145677,0.00033,7]
[426898998,1782995441000,-7607.15885652,0.00033,7]
[426898991,1782995441000,-500.0,0.00032999,60]
[426898987,1782995441000,-500.0,0.00032999,7]
[426898989,1782995441000,-539.10559979,0.00032999,7]
[426898988,1782995441000,-500.0,0.00032999,7]
[426898992,1782995441000,-500.0,0.00032999,60]
[426898994,1782995441000,-500.0,0.00032999,60]
[426898993,1782995441000,-500.0,0.00032999,60]
[426898990,1782995441000,-500.0,0.00032999,60]
[426899041,1782995443000,-62251.58046868,0.00033,7]
[426899040,1782995443000,-909.0,0.00022951,2]
[426899044,1782995443000,-577.92989043,0.00033,7]
[426899042,1782995443000,-34625.79403896,0.00033,7]
[426899047,1782995443000,-1124.48090476,0.00033,7]
[426899045,1782995443000,-7343.98566874,0.00033,7]
[426899046,1782995443000,-5913.38507529,0.00033,7]
[426899043,1782995443000,-1011.9745475,0.000329,2]
[426899074,1782995446000,-37691.38877531,0.00033,10]
[426899072,1782995446000,-1532.67609102,0.00033,7]
[426899064,1782995446000,-324182.28135291,0.00033,7]
[426899073,1782995446000,-3705.05453685,0.00033,2]
[426899071,1782995446000,-52523.46179248,0.00033,2]
[426899065,1782995446000,-1000.0,0.00033,25]
[426899063,1782995446000,-2565.3,0.00033,7]
[426899062,1782995446000,-4329.86327708,0.00033,7]
[426899060,1782995446000,-2316.67781889,0.00033,7]
[426899059,1782995446000,-1171.79967414,0.00033,7]
[426899058,1782995446000,-2680.56166339,0.00033,7]
[426899056,1782995446000,-6351.16336196,0.00029794,2]
[426899057,1782995446000,-217.77497465,0.0003299,2]
[426899066,1782995446000,-8768.20871826,0.00033,14]
[426899055,1782995446000,-150.0,0.00026562,2]
[426899061,1782995446000,-778.56109017,0.00033,7]
[426899070,1782995446000,-800.0,0.00033,5]
[426899088,1782995446000,-11920.84594655,0.00033,2]
[426899068,1782995446000,-588.62641628,0.00033,3]
[426899089,1782995446000,-150.0,0.00027088,2]
[426899086,1782995446000,-150.0,0.00026825,2]
[426899087,1782995446000,-186.35405345,0.00029926,2]
[426899084,1782995446000,-178375.75567004,0.00033,2]
[426899085,1782995446000,-3110.70948532,0.00033,2]
[426899067,1782995446000,-1000.0,0.00033,30]
[426899079,1782995446000,-2000.0,0.00033,33]
[426899082,1782995446000,-6753.32120929,0.00033,30]
[426899078,1782995446000,-5000.0,0.00033,5]
[426899076,1782995446000,-800.0,0.00033,5]
[426899080,1782995446000,-800.0,0.00033,5]
[426899081,1782995446000,-251.0,0.00033,2]
[426899077,1782995446000,-800.0,0.00033,5]
[426899075,1782995446000,-300.0,0.00033,120]
[426899069,1782995446000,-800.0,0.00033,5]
[426899083,1782995446000,-82121.54362046,0.00033,5]
[426899090,1782995447000,-2093.38001349,0.00033,2]
[426899091,1782995447000,-452.0,0.00033,2]
[426899106,1782995586000,324.26,0.00028725,120]
[426899121,1782996051000,3000.0,0.00025,120]
[426899124,1782996051000,3000.0,0.00025,120]
[426899123,1782996051000,3000.0,0.00025,120]
[426899122,1782996051000,3000.0,0.00025,120]
[426899125,1782996052000,3000.0,0.00025,120]
[426899155,1782996081000,2237.23759992,0.00025,120]
[426899154,1782996081000,3000.0,0.00025,120]
[426899164,1782996296000,143.34397431,0.00013,2]
[426899165,1782996296000,181.3,0.00013,2]
[426899166,1782996296000,152.99920899,0.00013,2]
[426899167,1782996296000,153.0,0.00013,2]
[426899170,1782996296000,151.0,0.00013,2]
[426899168,1782996296000,151.0,0.00013,2]
[426899172,1782996296000,153.0,0.00013,2]
[426899173,1782996296000,302.6,0.00013,2]
[426899171,1782996296000,296.38188866,0.00013,2]
[426899174,1782996296000,316.72351534,0.00013,2]
[426899175,1782996296000,536.58458871,0.00013,2]
[426899169,1782996296000,182.63811134,0.00013,2]
[426899178,1782996297000,688.18516572,0.00013,2]
[426899176,1782996297000,220.26572649,0.00013,2]
[426899177,1782996297000,532.05311223,0.00013,2]
[426899191,1782996406000,259.4,0.0002869,120]
[426899192,1782996424000,4652.84312953,0.0001305,2]
[426899208,1782996606000,-1086.43213293,0.000145,2]
[426899211,1782996631000,-1000.0,0.000145,2]
[426899210,1782996631000,-1677.27793999,0.000145,2]
[426899213,1782996631000,-1000.0,0.000145,2]
[426899212,1782996631000,-1000.0,0.000145,2]
[426899243,1782996632000,-376.33326758,0.00019999,2]
[426899239,1782996632000,-654.23417062,0.00019994,2]
[426899240,1782996632000,-885.1986,0.00019994,2]
[426899245,1782996632000,-500.0,0.00019999,2]
[426899242,1782996632000,-500.0,0.00019999,2]
[426899248,1782996632000,-500.0,0.00019999,2]
[426899247,1782996632000,-500.0,0.00019999,2]
[426899244,1782996632000,-500.0,0.00019999,2]
[426899246,1782996632000,-500.0,0.00019999,2]
[426899250,1782996632000,-278.5456554,0.00019999,2]
[426899260,1782996632000,-500.0,0.00019999,2]
[426899252,1782996632000,-500.0,0.00019999,2]
[426899259,1782996632000,-500.0,0.00019999,2]
[426899251,1782996632000,-500.0,0.00019999,2]
[426899255,1782996632000,-500.0,0.00019999,2]
[426899257,1782996632000,-500.0,0.00019999,2]
[426899256,1782996632000,-500.0,0.00019999,2]
[426899258,1782996632000,-500.0,0.00019999,2]
[426899253,1782996632000,-500.0,0.00019999,2]
[426899261,1782996632000,-500.0,0.00019999,2]
[426899262,1782996632000,-500.0,0.00019999,2]
[426899270,1782996632000,-500.0,0.00019999,2]
[426899249,1782996632000,-500.0,0.00019999,2]
[426899237,1782996632000,-247.9083927,0.00019994,2]
[426899225,1782996632000,-250.0,0.0001595,2]
[426899238,1782996632000,-437.33979024,0.00019994,2]
[426899222,1782996632000,-29326.98568108,0.00015,2]
[426899216,1782996632000,-150.0,0.00014644,2]
[426899214,1782996632000,-1000.0,0.000145,2]
[426899215,1782996632000,-1000.0,0.000145,2]
[426899217,1782996632000,-183.34202906,0.00014825,2]
[426899221,1782996632000,-150.0,0.00015,2]
[426899220,1782996632000,-300.0,0.00014999,2]
[426899218,1782996632000,-182.60383974,0.00014925,2]
[426899219,1782996632000,-1488.07507784,0.0001499,2]
[426899223,1782996632000,-655.0,0.00015,2]
[426899235,1782996632000,-2497.9,0.00019339,2]
[426899264,1782996632000,-500.0,0.00019999,2]
[426899224,1782996632000,-21282.18316159,0.00015,2]
[426899228,1782996632000,-213.0,0.00016416,2]
[426899226,1782996632000,-250.0,0.0001595,2]
[426899230,1782996632000,-1846.8165,0.00018,2]
[426899233,1782996632000,-9999.99,0.00019339,2]
[426899231,1782996632000,-5312.79420502,0.00018,2]
[426899234,1782996632000,-2577.63,0.00019339,2]
[426899227,1782996632000,-250.0,0.0001595,2]
[426899229,1782996632000,-500.0,0.00016499,2]
[426899232,1782996632000,-1537.98953504,0.00019,2]
[426899236,1782996632000,-150.99,0.00019339,2]
[426899241,1782996632000,-500.0,0.00019999,2]
[426899265,1782996632000,-500.0,0.00019999,2]
[426899274,1782996632000,-500.0,0.00019999,2]
[426899269,1782996632000,-500.0,0.00019999,2]
[426899295,1782996632000,-151.0,0.00021962,2]
[426899297,1782996632000,-151.0,0.00021962,2]
[426899300,1782996632000,-151.0,0.00021962,2]
[426899271,1782996632000,-500.0,0.00019999,2]
[426899298,1782996632000,-151.0,0.00021962,2]
[426899299,1782996632000,-151.0,0.00021962,2]
[426899296,1782996632000,-151.0,0.00021962,2]
[426899303,1782996632000,-180.26301877,0.00022,2]
[426899301,1782996632000,-151.0,0.00021962,2]
[426899311,1782996632000,-200.0,0.00022952,2]
[426899313,1782996632000,-2781.34,0.00022952,2]
[426899314,1782996632000,-259.4,0.00022952,2]
[426899315,1782996632000,-1852.42,0.00022952,2]
[426899316,1782996632000,-503.0,0.00023014,2]
[426899308,1782996632000,-902.0,0.00022055,2]
[426899307,1782996632000,-888.0,0.00022055,2]
[426899305,1782996632000,-177.51892134,0.00022,2]
[426899309,1782996632000,-387.54,0.00022528,2]
[426899310,1782996632000,-3944.78,0.00022547,7]
[426899312,1782996632000,-165.54,0.00022952,2]
[426899306,1782996632000,-387.54,0.00022004,2]
[426899318,1782996632000,-896.0,0.00023421,2]
[426899317,1782996632000,-387.54,0.00023052,2]
[426899293,1782996632000,-151.0,0.00021962,2]
[426899304,1782996632000,-23780.7984777,0.00022,4]
[426899302,1782996632000,-151.0,0.00021962,2]
[426899291,1782996632000,-151.0,0.00021962,2]
[426899263,1782996632000,-548.11512708,0.00019999,2]
[426899266,1782996632000,-500.0,0.00019999,2]
[426899267,1782996632000,-500.0,0.00019999,2]
[426899268,1782996632000,-500.0,0.00019999,2]
[426899272,1782996632000,-500.0,0.00019999,2]
[426899294,1782996632000,-151.0,0.00021962,2]
[426899275,1782996632000,-500.0,0.00019999,2]
[426899276,1782996632000,-199.5,0.00019999,2]
[426899277,1782996632000,-3315.50232035,0.0002,2]
[426899279,1782996632000,-16783.87836691,0.0002,2]
[426899280,1782996632000,-21969.53926279,0.0002,2]
[426899273,1782996632000,-500.0,0.00019999,2]
[426899278,1782996632000,-25860.60586995,0.0002,2]
[426899282,1782996632000,-387.54,0.00020956,2]
[426899290,1782996632000,-151.0,0.00021962,2]
[426899287,1782996632000,-151.0,0.00021962,2]
[426899288,1782996632000,-151.0,0.00021962,2]
[426899286,1782996632000,-151.0,0.00021962,2]
[426899285,1782996632000,-387.54,0.0002148,2]
[426899283,1782996632000,-3962.39,0.00021,2]
[426899284,1782996632000,-4362.72,0.00021273,2]
[426899281,1782996632000,-500.0,0.00020247,2]
[426899289,1782996632000,-151.0,0.00021962,2]
[426899292,1782996632000,-151.0,0.00021962,2]
[426899331,1782996633000,-1156.73713849,0.00024057,2]
[426899324,1782996633000,-167.0,0.00024,2]
[426899327,1782996633000,-165.0,0.00024,2]
[426899326,1782996633000,-7027.05,0.00024,2]
[426899323,1782996633000,-155.0,0.00024,2]
[426899319,1782996633000,-897.0,0.00023421,2]
[426899322,1782996633000,-177.79,0.00023766,2]
[426899321,1782996633000,-500.0,0.00023704,2]
[426899320,1782996633000,-500.0,0.00023541,2]
[426899328,1782996633000,-150.0,0.00024,2]
[426899330,1782996633000,-3843.26286151,0.00024057,2]
[426899325,1782996633000,-153.0,0.00024,2]
[426899333,1782996633000,-28930.25687615,0.000242,2]
[426899340,1782996633000,-152.16250135,0.00024967,2]
[426899334,1782996633000,-4298.14,0.000242,2]
[426899337,1782996633000,-192.21171466,0.00024777,2]
[426899345,1782996633000,-15513.04,0.00025,2]
[426899344,1782996633000,-23270.06,0.00025,2]
[426899343,1782996633000,-186.8472185,0.00025,2]
[426899342,1782996633000,-174.20276851,0.0002499,2]
[426899341,1782996633000,-900.0,0.00024979,2]
[426899346,1782996633000,-6761.78031096,0.00025,2]
[426899338,1782996633000,-6251.2862,0.000249,2]
[426899339,1782996633000,-4559.13589107,0.000249,2]
[426899329,1782996633000,-3928.43,0.00024005,7]
[426899332,1782996633000,-21069.74312385,0.000242,2]
[426899336,1782996633000,-171.89115532,0.00024777,2]
[426899335,1782996633000,-500.0,0.00024545,2]
[426899371,1782996638000,-3789.8,0.00025463,7]
[426899392,1782996638000,-396.47983598,0.0002579,2]
[426899393,1782996638000,-1070722.14002351,0.000258,2]
[426899382,1782996638000,-185.39450032,0.00025611,2]
[426899374,1782996638000,-162.47023292,0.0002561,2]
[426899377,1782996638000,-234.33887703,0.0002561,2]
[426899379,1782996638000,-167.14087279,0.0002561,2]
[426899369,1782996638000,-165.0,0.00025,2]
[426899375,1782996638000,-174.77536137,0.0002561,2]
[426899376,1782996638000,-255.59307488,0.0002561,2]
[426899380,1782996638000,-154.54681123,0.0002561,2]
[426899378,1782996638000,-259.08992309,0.0002561,2]
[426899364,1782996638000,-2851.13,0.00025,2]
[426899372,1782996638000,-4559.13589099,0.00025573,2]
[426899373,1782996638000,-161.56383169,0.0002561,2]
[426899368,1782996638000,-155.0,0.00025,2]
[426899366,1782996638000,-1723.86,0.00025,2]
[426899367,1782996638000,-1148.91,0.00025,2]
[426899383,1782996638000,-154.27352016,0.00025611,2]
[426899363,1782996638000,-4277.19,0.00025,2]
[426899365,1782996638000,-4023.68,0.00025,2]
[426899359,1782996638000,-1000.0,0.000145,2]
[426899361,1782996638000,-579.6765876,0.00025,2]
[426899360,1782996638000,-887.0,0.00020909,2]
[426899370,1782996638000,-225.5,0.00025098,2]
[426899381,1782996638000,-232.78268923,0.00025611,2]
[426899362,1782996638000,-2639.98310144,0.00025,2]
[426899385,1782996638000,-204.02019613,0.00025612,2]
[426899384,1782996638000,-211.63321973,0.00025611,2]
[426899413,1782996638000,-468.67775406,0.00026167,2]
[426899415,1782996638000,-194.00398439,0.00026167,2]
[426899411,1782996638000,-511.18614975,0.00026167,2]
[426899409,1782996638000,-212.477487,0.00026167,2]
[426899405,1782996638000,-184.15819001,0.00026167,2]
[426899407,1782996638000,-324.94046584,0.00026167,2]
[426899406,1782996638000,-349.55072274,0.00026167,2]
[426899417,1782996638000,-518.17984617,0.00026167,2]
[426899401,1782996638000,-165.0,0.00026,2]
[426899398,1782996638000,-4619.42255365,0.00026,2]
[426899395,1782996638000,-259.4,0.00025821,2]
[426899404,1782996638000,-323.12766338,0.00026167,2]
[426899408,1782996638000,-377.77874048,0.00026167,2]
[426899403,1782996638000,-2000.0,0.00026072,2]
[426899400,1782996638000,-221.04398295,0.00026,2]
[426899391,1782996638000,-211.69563563,0.00025612,2]
[426899388,1782996638000,-271.72804017,0.00025612,2]
[426899386,1782996638000,-343.78231065,0.00025612,2]
[426899389,1782996638000,-225.55553833,0.00025612,2]
[426899390,1782996638000,-384.42342931,0.00025612,2]
[426899387,1782996638000,-222.70598715,0.00025612,2]
[426899396,1782996638000,-613.71456904,0.0002599,2]
[426899402,1782996638000,-33361.7046,0.00026072,2]
[426899397,1782996638000,-1137.03976482,0.00026,2]
[426899399,1782996638000,-13833.35636612,0.00026,10]
[426899394,1782996638000,-158.63278253,0.000258,2]
[426899498,1782996639000,-225.5,0.00026468,2]
[426899513,1782996639000,-1829.0,0.00026728,2]
[426899500,1782996639000,-216.6671885,0.00026489,2]
[426899511,1782996639000,-512.72249664,0.000267,2]
[426899494,1782996639000,-4559.13589099,0.00026246,2]
[426899482,1782996639000,-153.37221337,0.00026169,2]
[426899492,1782996639000,-187.24489941,0.00026169,2]
[426899490,1782996639000,-423.39127127,0.00026169,2]
[426899486,1782996639000,-245.76937274,0.00026169,2]
[426899484,1782996639000,-576.63514397,0.00026169,2]
[426899515,1782996639000,-165.54,0.00026778,2]
[426899496,1782996639000,-28083.93966186,0.000264,2]
[426899503,1782996639000,-262.0,0.00026521,2]
[426899548,1782996639000,-165.0,0.00027,2]
[426899517,1782996639000,-168.68623911,0.00026783,2]
[426899505,1782996639000,-700.0,0.000266,9]
[426899546,1782996639000,-624.53,0.00026997,2]
[426899507,1782996639000,-1500.0,0.000267,9]
[426899521,1782996639000,-70896.1873549,0.000268,2]
[426899523,1782996639000,-3066411.12183262,0.000268,2]
[426899525,1782996639000,-7613.87247,0.000268,30]
[426899538,1782996639000,-3100.0,0.000269,9]
[426899527,1782996639000,-264.23,0.000268,7]
[426899542,1782996639000,-552.97,0.00026921,7]
[426899540,1782996639000,-4559.13589099,0.00026919,2]
[426899488,1782996639000,-443.80112927,0.00026169,2]
[426899544,1782996639000,-1810.0,0.00026982,2]
[426899519,1782996639000,-396.47983598,0.0002679,2]
[426899480,1782996639000,-188.09745689,0.00026169,2]
[426899456,1782996639000,-174.39670117,0.00026169,2]
[426899477,1782996639000,-451.11107666,0.00026169,2]
[426899419,1782996639000,-334.28174558,0.00026167,2]
[426899421,1782996639000,-371.66222215,0.00026167,2]
[426899423,1782996639000,-309.09362245,0.00026167,2]
[426899428,1782996639000,-370.78900063,0.00026167,2]
[426899425,1782996639000,-465.56537845,0.00026167,2]
[426899430,1782996639000,-416.57659604,0.00026167,2]
[426899432,1782996639000,-308.54704031,0.00026167,2]
[426899434,1782996639000,-195.37353699,0.00026167,2]
[426899438,1782996639000,-224.03841985,0.00026167,2]
[426899445,1782996639000,-179.99509755,0.00026167,2]
[426899440,1782996639000,-444.4301909,0.00026167,2]
[426899443,1782996639000,-207.09770221,0.00026167,2]
[426899436,1782996639000,-427.67275991,0.00026167,2]
[426899442,1782996639000,-150.07822437,0.00026167,2]
[426899448,1782996639000,-185.13410816,0.00026169,2]
[426899452,1782996639000,-243.68170956,0.00026169,2]
[426899462,1782996639000,-201.22618017,0.00026169,2]
[426899460,1782996639000,-162.02882278,0.00026169,2]
[426899466,1782996639000,-515.67346597,0.00026169,2]
[426899464,1782996639000,-285.68729115,0.00026169,2]